fUST/lending_fUST_20251024
["ID","MTS","AMOUNT","RATE_DAILY","PERIOD"]
[392261231,1761288153833,175.33,0.00020075,30]
[392261232,1761288154301,219.16,0.00020911,30]
[392261233,1761288157994,-211.24914168,0.00018611,2]
[392261234,1761288159445,-166.10512087,0.00018611,2]
[392261235,1761288160748,-3447.94329778,0.00018611,2]
[392261236,1761288163893,3104.12340444,0.00018611,2]
[392261237,1761288163945,1895.87659556,0.00018611,2]
[392261238,1761288165849,-251.91105268,0.00018799,2]
[392261239,1761288167904,-336.66038077,0.00018799,2]
[392261240,1761288172156,-277.59300397,0.00018799,2]
[392261241,1761288172410,251.91105268,0.00018611,2]
[392261242,1761288175852,-4133.83556258,0.00018799,2]
[392261243,1761288180604,1732.33887484,0.00018799,2]
[392261244,1761288180645,3267.66112516,0.00018799,2]
[392261245,1761288191003,-1200.0,0.00018989,2]
[392261246,1761288191060,-300.0,0.00018989,2]
[392261247,1761288196405,288.81668608,0.00018527,2]
[392261248,1761288196661,614.25338474,0.00018989,2]
[392261249,1761288198576,329.74613645,0.00018527,2]
[392261250,1761288200529,167.84182264,0.000189,2]
[392261251,1761288205098,5000.0,0.00018989,2]
[392261252,1761288212193,-300.0,0.000186,2]
[392261253,1761288215560,-335.88790647,0.00018414,2]
[392261254,1761288221248,-300.0,0.000186,2]
[392261255,1761288230509,300.0,0.000186,2]
[392261256,1761288231195,-197.15306482,0.000188,2]
[392261257,1761288232767,177.93,0.00020128,30]
[392261258,1761288233207,222.42,0.00020966,30]
[392261259,1761288236332,-153.0,0.000188,2]
[392261260,1761288236401,-4649.84693518,0.000188,2]
[392261261,1761288237449,196.0,0.00016,2]
[392261262,1761288238178,196.0,0.00016031,2]
[392261263,1761288238342,196.0,0.00016062,2]
[392261264,1761288238480,112.31612964,0.00016093,2]
[392261265,1761288238523,83.68387036,0.00016093,2]
[392261266,1761288238624,196.0,0.00016124,2]
[392261267,1761288238767,196.0,0.00016154,2]
[392261268,1761288238933,196.0,0.00016185,2]
[392261269,1761288239091,196.0,0.00016216,2]
[392261270,1761288239237,196.0,0.00016247,2]
[392261271,1761288239402,196.0,0.00016278,2]
[392261272,1761288239546,196.0,0.00016309,2]
[392261273,1761288239689,196.0,0.0001634,2]
[392261274,1761288239867,196.0,0.00016371,2]
[392261275,1761288240051,196.0,0.00016401,2]
[392261276,1761288240212,196.0,0.00016432,2]
[392261277,1761288240436,196.0,0.00016463,2]
[392261278,1761288240645,196.0,0.00016494,2]
[392261279,1761288240720,196.0,0.00016525,2]
[392261280,1761288240878,196.0,0.00016556,2]
[392261281,1761288241038,196.0,0.00016587,2]
[392261282,1761288241179,196.0,0.00016618,2]
[392261283,1761288241360,196.0,0.00016649,2]
[392261284,1761288241519,196.0,0.00016679,2]
[392261285,1761288241659,196.0,0.0001671,2]
[392261286,1761288241808,196.0,0.00016741,2]
[392261287,1761288241963,196.0,0.00016772,2]
[392261288,1761288242236,196.0,0.00016803,2]
[392261289,1761288242369,300.0,0.000186,2]
[392261290,1761288242427,196.0,0.00016834,2]
[392261291,1761288242533,196.0,0.00016865,2]
[392261292,1761288242703,196.0,0.00016896,2]
[392261293,1761288242844,196.0,0.00016926,2]
[392261294,1761288243009,196.0,0.00016957,2]
[392261295,1761288243367,196.0,0.00016988,2]
[392261296,1761288243729,196.0,0.00017019,2]
[392261297,1761288243897,196.0,0.0001705,2]
[392261298,1761288244073,196.0,0.00017081,2]
[392261299,1761288244225,196.0,0.00017112,2]
[392261300,1761288244379,196.0,0.00017143,2]
[392261301,1761288244531,196.0,0.00017174,2]
[392261302,1761288244852,196.0,0.00017204,2]
[392261303,1761288245041,196.0,0.00017235,2]
[392261304,1761288245182,196.0,0.00017266,2]
[392261305,1761288245339,196.0,0.00017297,2]
[392261306,1761288245519,196.0,0.00017328,2]
[392261307,1761288245686,196.0,0.00017359,2]
[392261308,1761288245840,196.0,0.0001739,2]
[392261309,1761288245958,350.15306482,0.000188,2]
[392261310,1761288246012,196.0,0.00017421,2]
[392261311,1761288246162,196.0,0.00017451,2]
[392261312,1761288246530,196.0,0.00017482,2]
[392261313,1761288246697,196.0,0.00017513,2]
[392261314,1761288246858,196.0,0.00017544,2]
[392261315,1761288247023,54.17306482,0.00017575,2]
[392261316,1761288247071,141.82693518,0.00017575,2]
[392261317,1761288247220,196.0,0.00017606,2]
[392261318,1761288247384,196.0,0.00017637,2]
[392261319,1761288247542,196.0,0.00017668,2]
[392261320,1761288247682,196.0,0.00017699,2]
[392261321,1761288247840,196.0,0.00017729,2]
[392261322,1761288248008,196.0,0.0001776,2]
[392261323,1761288248160,196.0,0.00017791,2]
[392261324,1761288248305,196.0,0.00017822,2]
[392261325,1761288248456,196.0,0.00017853,2]
[392261326,1761288248603,196.0,0.00017884,2]
[392261327,1761288248751,196.0,0.00017915,2]
[392261328,1761288248897,196.0,0.00017946,2]
[392261329,1761288249068,196.0,0.00017976,2]
[392261330,1761288249214,196.0,0.00018007,2]
[392261331,1761288249362,196.0,0.00018038,2]
[392261332,1761288249512,196.0,0.00018069,2]
[392261333,1761288249657,265.23530251,0.000181,2]
[392261334,1761288251460,-300.0,0.00018989,2]
[392261335,1761288254442,5000.0,0.00018989,2]
[392261336,1761288256025,-234.63472106,0.0001899,2]
[392261337,1761288258153,-236.8945931,0.0001899,2]
[392261338,1761288260181,-309.25,0.0001899,2]
[392261339,1761288262313,-304.61107366,0.0001899,2]
[392261340,1761288264248,-290.68179119,0.0001899,2]
[392261341,1761288268566,300.0,0.000186,2]
[392261342,1761288270012,-345.75950302,0.0001899,2]
[392261343,1761288271244,780.77931416,0.00018989,2]
[392261344,1761288272406,300.0,0.000186,2]
[392261345,1761288273277,-229.55345096,0.0001899,2]
[392261346,1761288275149,-896.22972521,0.0001899,2]
[392261347,1761288275360,-10000.01,0.0001899,2]
[392261348,1761288275552,-2201.44074526,0.0001899,2]
[392261349,1761288279228,5000.0,0.00018989,2]
[392261350,1761288279328,300.0,0.000186,2]
[392261351,1761288281588,-300.0,0.00019,2]
[392261352,1761288281635,-300.0,0.00019,2]
[392261353,1761288281694,-300.0,0.00019,2]
[392261354,1761288283066,300.0,0.000186,2]
[392261355,1761288290699,300.0,0.000186,2]
[392261356,1761288293234,300.0,0.000186,2]
[392261357,1761288300947,300.0,0.000186,2]
[392261358,1761288303948,5000.0,0.00019178,2]
[392261359,1761288304251,300.0,0.000186,2]
[392261360,1761288311689,300.0,0.000186,2]
[392261361,1761288312261,169.2,0.00020128,30]
[392261362,1761288312671,211.5,0.00020966,30]
[392261363,1761288322653,300.0,0.000186,2]
[392261364,1761288325716,300.0,0.000186,2]
[392261365,1761288328384,5000.0,0.00019,2]
[392261366,1761288333235,300.0,0.000186,2]
[392261367,1761288352628,841.31575196,0.00019,2]
[392261368,1761288357611,196.0,0.00016,2]
[392261369,1761288357940,196.0,0.0001705,2]
[392261370,1761288358100,287.66176512,0.000181,2]
[392261371,1761288391862,160.89,0.00018176,30]
[392261372,1761288392325,201.12,0.00018934,30]
[392261373,1761288393277,241.34,0.00019691,30]
[392261374,1761288393800,281.56,0.00020448,30]
[392261375,1761288457146,724.0528526,0.0001898,2]
[392261376,1761288469399,176.98,0.00018925,30]
[392261377,1761288469802,212.38,0.00019682,30]
[392261378,1761288470348,247.77,0.00020439,30]
[392261380,1761288477356,196.0,0.00016,2]
[392261381,1761288477744,210.38308826,0.000181,2]
[392261382,1761288549621,159.61,0.00021058,30]
[392261383,1761288550301,1448.59654206,0.00018564,2]
[392261384,1761288550341,529.44156194,0.00018564,2]
[392261396,1761288565808,-300.0,0.00019,2]
[392261397,1761288573922,202.7919936,0.000186,2]
[392261398,1761288584504,-174.35744522,0.00019078,2]
[392261399,1761288626678,155.25,0.00019096,30]
[392261400,1761288627172,186.3,0.0001986,30]
[392261401,1761288627629,217.35,0.00020623,30]
[392261569,1761288640313,-5000.0,0.00019178,2]
[392261571,1761288640322,-447.54698045,0.00019189,2]
[392261573,1761288640332,-500.0,0.000192,2]
[392261575,1761288640341,-330.84735033,0.00019379,2]
[392261577,1761288640350,-378.11125752,0.00019379,2]
[392261579,1761288640362,-590.20804103,0.00019379,2]
[392261581,1761288640375,-320.03571778,0.00019418,2]
[392261583,1761288640388,-174.35744522,0.00019424,2]
[392261585,1761288640397,-172.78633,0.00019461,2]
[392261587,1761288640406,-457.67732932,0.00019502,2]
[392261630,1761288640798,-3e-08,0.00019502,2]
[392261791,1761288643223,-189.32267065,0.00019502,2]
[392261792,1761288643233,-393.1185571,0.00019741,2]
[392261793,1761288643243,-1200.0,0.00019769,2]
[392261794,1761288643252,-174.35744522,0.0001977,2]
[392261795,1761288643262,-300.0,0.0001977,2]
[392261796,1761288643270,-300.0,0.0001977,2]
[392261797,1761288643280,-300.0,0.0001977,2]
[392261798,1761288643289,-1200.0,0.00019771,2]
[392261799,1761288643299,-300.0,0.00019771,2]
[392261800,1761288643308,-2580.94238409,0.00019772,2]
[392261801,1761288643318,-500.0,0.00019798,2]
[392261802,1761288643327,-183.41899847,0.00019798,2]
[392261803,1761288643336,-485.6100119,0.00019798,2]
[392261804,1761288643352,-14.3899881,0.00019798,2]
[392261805,1761288643361,-500.0,0.00019798,2]
[392261806,1761288643370,-500.0,0.00019798,2]
[392261807,1761288643380,-500.0,0.00019798,2]
[392261808,1761288643397,-500.0,0.00019798,2]
[392261809,1761288643408,-500.0,0.00019798,2]
[392261810,1761288643418,-632.25091576,0.00019798,2]
[392261811,1761288643427,-500.0,0.00019798,2]
[392261812,1761288643437,-500.0,0.00019798,2]
[392261813,1761288643447,-500.0,0.00019798,2]
[392261814,1761288643456,-500.0,0.00019798,2]
[392261815,1761288643467,-500.0,0.00019798,2]
[392261816,1761288643477,-500.0,0.00019798,2]
[392261817,1761288643486,-500.0,0.00019798,2]
[392261818,1761288643495,-428.99958675,0.00019798,2]
[392261819,1761288643507,-240.06669422,0.00019798,2]
[392261820,1761288643517,-500.0,0.00019798,2]
[392261821,1761288643526,-500.0,0.00019798,2]
[392261822,1761288643536,-500.0,0.00019798,2]
[392261823,1761288643546,-500.0,0.00019798,2]
[392261824,1761288643556,-500.0,0.00019798,2]
[392261825,1761288643565,-500.0,0.00019798,2]
[392261826,1761288643575,-500.0,0.00019798,2]
[392261827,1761288643584,-500.0,0.00019798,2]
[392261828,1761288643593,-500.0,0.00019798,2]
[392261829,1761288643603,-500.0,0.00019798,2]
[392261830,1761288643612,-500.0,0.00019798,2]
[392261831,1761288643621,-500.0,0.00019798,2]
[392261832,1761288643630,-500.0,0.00019798,2]
[392261833,1761288643640,-500.0,0.00019798,2]
[392261834,1761288643649,-500.0,0.00019798,2]
[392261835,1761288643659,-500.0,0.00019798,2]
[392261836,1761288643669,-417.25390773,0.00019798,2]
[392261837,1761288643680,-500.0,0.00019798,2]
[392261838,1761288643690,-500.0,0.00019798,2]
[392261839,1761288643700,-500.0,0.00019798,2]
[392261840,1761288643710,-500.0,0.00019798,2]
[392261841,1761288643720,-500.0,0.00019798,2]
[392261842,1761288643728,-500.0,0.00019798,2]
[392261843,1761288643737,-500.0,0.00019798,2]
[392261844,1761288643746,-500.0,0.00019798,2]
[392261845,1761288643755,-500.0,0.00019798,2]
[392261846,1761288643765,-500.0,0.00019798,2]
[392261847,1761288643774,-500.0,0.00019798,2]
[392261848,1761288643784,-500.0,0.00019798,2]
[392261849,1761288643793,-500.0,0.00019798,2]
[392261850,1761288643802,-500.0,0.00019798,2]
[392261851,1761288643811,-500.0,0.00019798,2]
[392261852,1761288643820,-500.0,0.00019798,2]
[392261853,1761288643829,-500.0,0.00019798,2]
[392261854,1761288643839,-500.0,0.00019798,2]
[392261855,1761288643848,-500.0,0.00019798,2]
[392261856,1761288643857,-500.0,0.00019798,2]
[392261857,1761288643866,-500.0,0.00019798,2]
[392261858,1761288643876,-500.0,0.00019798,2]
[392261860,1761288643884,-500.0,0.00019798,2]
[392261862,1761288643894,-315.18023638,0.00019799,2]
[392261864,1761288643903,-186.98425629,0.00019799,2]
[392261866,1761288643912,-393.1185571,0.000198,2]
[392261868,1761288643922,-1750.99104087,0.000198,2]
[392261870,1761288643930,-25879.28643066,0.000198,2]
[392261882,1761288673373,500.0,0.00035921,30]
[392261883,1761288675708,500.0,0.00035921,30]
[392261884,1761288703367,168.01,0.00020221,30]
[392261885,1761288703797,196.01,0.00020999,30]
[392261886,1761288710552,1407.0774645,0.00018814,2]
[392261887,1761288733451,2000.0,0.00035921,30]
[392261888,1761288750091,1000.0,0.00035921,30]
[392261889,1761288750484,1000.0,0.00035921,30]
[392261890,1761288750676,1000.0,0.00035921,30]
[392261891,1761288750988,1000.0,0.00035921,30]
[392261892,1761288751377,1000.0,0.00035921,30]
[392261893,1761288751605,1033.448833,0.00035921,30]
[392261894,1761288780261,156.1,0.00020287,30]
[392261895,1761288780751,182.11,0.00021068,30]
[392261896,1761288783842,6219.0779643,0.00018799,2]
[392261897,1761288843196,211.0744693,0.00018765,2]
[392261898,1761288846167,2804.2125367,0.00018915,2]
[392261899,1761288856466,169.2,0.00020716,30]
[392261900,1761288857781,765.6450297,0.00019,2]
[392261901,1761288857811,2679.16783359,0.00019,2]
[392261902,1761288931072,162.74,0.00020685,30]
[392261903,1761288939056,-5000.0,0.00019212,2]
[392261904,1761288954059,-415.13565222,0.000193,2]
[392261905,1761288970207,-438.59604084,0.00019381,2]
[392261906,1761288985341,-204.0689858,0.00019461,2]
[392261907,1761289000483,-2393.10685226,0.00019698,2]
[392261908,1761289004844,156.53,0.00020665,30]
[392261909,1761289013925,168.793832,9.407e-05,2]
[392261910,1761289015597,-300.0,0.00019699,2]
[392261911,1761289015635,-220.62616547,0.00019699,2]
[392261912,1761289015677,-500.0,0.00019699,2]
[392261913,1761289015716,-500.0,0.00019699,2]
[392261914,1761289015756,-500.0,0.00019699,2]
[392261915,1761289015796,-500.0,0.00019699,2]
[392261916,1761289015836,-500.0,0.00019699,2]
[392261917,1761289015872,-500.0,0.00019699,2]
[392261918,1761289015910,-500.0,0.00019699,2]
[392261919,1761289015948,-500.0,0.00019699,2]
[392261920,1761289015982,-458.75766906,0.00019699,2]
[392261921,1761289016112,-41.24233094,0.00019699,2]
[392261922,1761289016146,-500.0,0.00019699,2]
[392261923,1761289016181,-500.0,0.00019699,2]
[392261924,1761289016215,-500.0,0.00019699,2]
[392261925,1761289016250,-500.0,0.00019699,2]
[392261926,1761289016284,-500.0,0.00019699,2]
[392261927,1761289016319,-500.0,0.00019699,2]
[392261928,1761289016354,-500.0,0.00019699,2]
[392261929,1761289016390,-524.00666942,0.00019699,2]
[392261930,1761289016424,-500.0,0.00019699,2]
[392261931,1761289016457,-369.51199928,0.00019699,2]
[392261932,1761289016620,-130.48800072,0.00019699,2]
[392261933,1761289016660,-500.0,0.00019699,2]
[392261934,1761289016695,-500.0,0.00019699,2]
[392261935,1761289016734,-500.0,0.00019699,2]
[392261936,1761289016768,-500.0,0.00019699,2]
[392261937,1761289016806,-593.39234101,0.00019699,2]
[392261938,1761289016844,-500.0,0.00019699,2]
[392261939,1761289016879,-300.58073779,0.00019699,2]
[392261940,1761289017015,-500.0,0.00019699,2]
[392261941,1761289017055,-522.77511231,0.00019699,2]
[392261942,1761289017092,-405.53761634,0.00019699,2]
[392261943,1761289017322,-94.46238366,0.00019699,2]
[392261944,1761289017360,-500.0,0.00019699,2]
[392261945,1761289017399,-500.0,0.00019699,2]
[392261946,1761289017438,-500.0,0.00019699,2]
[392261947,1761289017477,-500.0,0.00019699,2]
[392261948,1761289017516,-500.0,0.00019699,2]
[392261949,1761289017555,-500.0,0.00019699,2]
[392261950,1761289017594,-500.0,0.00019699,2]
[392261951,1761289017631,-500.0,0.00019699,2]
[392261952,1761289017668,-500.0,0.00019699,2]
[392261953,1761289017705,-311.08523268,0.00019699,2]
[392261954,1761289017774,-188.91476732,0.00019699,2]
[392261955,1761289017809,-500.0,0.00019699,2]
[392261956,1761289017847,-500.0,0.00019699,2]
[392261957,1761289017884,-500.0,0.00019699,2]
[392261958,1761289017921,-500.0,0.00019699,2]
[392261959,1761289017960,-500.0,0.00019699,2]
[392261960,1761289017997,-154.43831582,0.00019699,2]
[392261961,1761289018037,-500.0,0.00019699,2]
[392261962,1761289018075,-500.0,0.00019699,2]
[392261963,1761289018113,-500.0,0.00019699,2]
[392261964,1761289018150,-550.0,0.00019699,2]
[392261965,1761289018352,-500.0,0.00019699,2]
[392261966,1761289018387,-500.0,0.00019699,2]
[392261967,1761289018421,-500.0,0.00019699,2]
[392261968,1761289018456,-500.0,0.00019699,2]
[392261969,1761289018490,-500.0,0.00019699,2]
[392261970,1761289018524,-500.0,0.00019699,2]
[392261971,1761289018558,-500.0,0.00019699,2]
[392261972,1761289018592,-500.0,0.00019699,2]
[392261973,1761289018625,-500.0,0.00019699,2]
[392261974,1761289018659,-500.0,0.00019699,2]
[392261975,1761289018824,-500.0,0.00019699,2]
[392261976,1761289018860,-500.0,0.00019699,2]
[392261977,1761289018892,-500.0,0.00019699,2]
[392261978,1761289018927,-500.0,0.00019699,2]
[392261979,1761289018958,-500.0,0.00019699,2]
[392261980,1761289018990,-534.00076417,0.00019699,2]
[392261981,1761289021000,-615.81934182,0.000197,2]
[392261982,1761289025484,300.0,0.00019699,2]
[392261983,1761289025801,500.0,0.00019699,2]
[392261984,1761289025854,500.0,0.00019699,2]
[392261985,1761289031228,300.0,0.000194,2]
[392261986,1761289222959,-300.0,0.000194,2]
[392261987,1761289273632,159.64876612,0.000194,2]
[392261988,1761289284495,2013.86595283,0.00019431,2]
[392261989,1761289375999,454.27289081,0.00019334,2]
[392261990,1761289501581,-1200.0,0.00019672,2]
[392261991,1761289501616,-1200.0,0.00019672,2]
[392261992,1761289501649,-300.0,0.00019672,2]
[392261993,1761289502420,300.0,0.00019672,2]
[392261994,1761289502998,300.0,0.00019672,2]
[392261995,1761289503424,300.0,0.00019672,2]
[392261996,1761289503947,1200.0,0.00019672,2]
[392261997,1761289609613,-429.82412002,0.00019672,2]
[392261998,1761289609649,-500.0,0.00019673,2]
[392261999,1761289609681,-500.0,0.00019673,2]
[392262000,1761289609715,-542.72,0.0001969,3]
[392262001,1761289609751,-271.36,0.0001969,3]
[392262002,1761289609788,-814.13,0.0001969,3]
[392262003,1761289609823,-300.0,0.00019697,2]
[392262004,1761289609858,-1400.79283268,0.00019698,2]
[392262005,1761289610118,-2093.96849571,0.00019698,2]
[392262006,1761289610157,-418.68085865,0.00019698,2]
[392262007,1761289610195,-505.91409097,0.00019699,2]
[392262008,1761289610233,-500.0,0.00019699,2]
[392262009,1761289610266,-418.65149881,0.00019699,2]
[392262010,1761289610302,-430.0,0.00019699,2]
[392262011,1761289610337,-500.0,0.00019699,2]
[392262012,1761289610695,-500.0,0.00019699,2]
[392262013,1761289610729,-200.0,0.00019699,2]
[392262014,1761289610764,-500.0,0.00019699,2]
[392262015,1761289610802,-500.0,0.00019699,2]
[392262016,1761289610846,-500.0,0.00019699,2]
[392262017,1761289610884,-500.0,0.00019699,2]
[392262018,1761289610921,-500.0,0.00019699,2]
[392262019,1761289610958,-500.0,0.00019699,2]
[392262020,1761289610994,-250.0,0.00019699,2]
[392262021,1761289611031,-500.0,0.00019699,2]
[392262022,1761289611065,-500.0,0.00019699,2]
[392262023,1761289611262,-500.0,0.00019699,2]
[392262024,1761289611297,-246.21259395,0.00019699,2]
[392262025,1761289611332,-221.041,0.00019699,2]
[392262026,1761289611368,-500.0,0.00019699,2]
[392262027,1761289611402,-277.31019678,0.00019699,2]
[392262028,1761289611447,-309.37211,0.00019699,2]
[392262029,1761289611489,-562.49392837,0.00019699,2]
[392262030,1761289613496,-3085.25854565,0.000197,2]
[392262031,1761289613518,-10000.01,0.000197,2]
[392262032,1761289613540,-10000.01,0.000197,2]
[392262033,1761289613623,-10000.01,0.000197,2]
[392262034,1761289613645,-10000.01,0.000197,2]
[392262035,1761289613667,-10000.01,0.000197,2]
[392262036,1761289613686,-10000.01,0.000197,2]
[392262037,1761289613706,-10000.01,0.000197,2]
[392262038,1761289618489,-10000.01,0.000197,2]
[392262039,1761289618700,-10000.01,0.000197,2]
[392262040,1761289618875,-10000.01,0.000197,2]
[392262041,1761289624733,-250.0,0.00019693,2]
[392262042,1761289632864,168.31,0.00020006,30]
[392262043,1761289633513,5000.0,0.00019693,2]
[392262044,1761289639637,-300.0,0.00019699,2]
[392262045,1761289654758,-5000.01,0.000197,2]
[392262046,1761289654871,-10000.01,0.000197,2]
[392262047,1761289655051,-10000.01,0.000197,2]
[392262048,1761289655189,-10000.01,0.000197,2]
[392262049,1761289655333,-10000.01,0.000197,2]
[392262050,1761289655512,-10000.01,0.000197,2]
[392262051,1761289655666,-10000.01,0.000197,2]
[392262052,1761289655942,-10000.01,0.000197,2]
[392262053,1761289655978,-10000.01,0.000197,2]
[392262054,1761289656108,-10000.01,0.000197,2]
[392262055,1761289686664,1026.09033822,0.00019478,2]
[392262056,1761289694192,-300.0,0.00019698,2]
[392262057,1761289707757,161.88,0.00018783,30]
[392262058,1761289709129,-1200.0,0.00019699,2]
[392262059,1761289709166,-436.29639064,0.00019699,2]
[392262060,1761289709207,-300.0,0.00019699,2]
[392262061,1761289709240,-500.0,0.00019699,2]
[392262062,1761289709274,-500.0,0.00019699,2]
[392262063,1761289709306,-500.0,0.00019699,2]
[392262064,1761289709339,-500.0,0.00019699,2]
[392262065,1761289709374,-500.0,0.00019699,2]
[392262066,1761289709405,-500.0,0.00019699,2]
[392262067,1761289709548,-500.0,0.00019699,2]
[392262068,1761289709583,-414.12060943,0.00019699,2]
[392262069,1761289709617,-500.0,0.00019699,2]
[392262070,1761289709651,-500.0,0.00019699,2]
[392262071,1761289709686,-636.07315651,0.00019699,2]
[392262072,1761289709718,-500.0,0.00019699,2]
[392262073,1761289709753,-500.0,0.00019699,2]
[392262074,1761289709789,-500.0,0.00019699,2]
[392262075,1761289709824,-500.0,0.00019699,2]
[392262076,1761289709861,-399.62246812,0.00019699,2]
[392262077,1761289710012,-100.37753188,0.00019699,2]
[392262078,1761289710054,-500.0,0.00019699,2]
[392262079,1761289710093,-442.67371837,0.00019699,2]
[392262080,1761289710134,-500.0,0.00019699,2]
[392262081,1761289710169,-500.0,0.00019699,2]
[392262082,1761289710202,-500.0,0.00019699,2]
[392262083,1761289710235,-553.04015015,0.00019699,2]
[392262084,1761289710268,-500.0,0.00019699,2]
[392262085,1761289710303,-500.0,0.00019699,2]
[392262086,1761289710334,-500.0,0.00019699,2]
[392262087,1761289710365,-307.8271992,0.00019699,2]
[392262088,1761289710437,-192.1728008,0.00019699,2]
[392262089,1761289710469,-500.0,0.00019699,2]
[392262090,1761289710500,-500.0,0.00019699,2]
[392262091,1761289710533,-500.0,0.00019699,2]
[392262092,1761289710566,-500.0,0.00019699,2]
[392262093,1761289710599,-500.0,0.00019699,2]
[392262094,1761289710631,-618.37038709,0.00019699,2]
[392262095,1761289710663,-500.0,0.00019699,2]
[392262096,1761289710696,-639.40704195,0.00019699,2]
[392262097,1761289710730,-500.0,0.00019699,2]
[392262098,1761289710881,-500.0,0.00019699,2]
[392262099,1761289710913,-500.0,0.00019699,2]
[392262100,1761289710950,-500.0,0.00019699,2]
[392262101,1761289710985,-500.0,0.00019699,2]
[392262102,1761289711019,-500.0,0.00019699,2]
[392262103,1761289711050,-500.0,0.00019699,2]
[392262104,1761289711084,-500.0,0.00019699,2]
[392262105,1761289711120,-500.0,0.00019699,2]
[392262106,1761289711154,-500.0,0.00019699,2]
[392262107,1761289711187,-260.58136678,0.00019699,2]
[392262108,1761289711338,-500.0,0.00019699,2]
[392262109,1761289711370,-500.0,0.00019699,2]
[392262110,1761289711509,-500.0,0.00019699,2]
[392262111,1761289711543,-500.0,0.00019699,2]
[392262112,1761289711575,-500.0,0.00019699,2]
[392262113,1761289711608,-638.72301897,0.00019699,2]
[392262114,1761289711640,-500.0,0.00019699,2]
[392262115,1761289711675,-500.0,0.00019699,2]
[392262116,1761289711707,-500.0,0.00019699,2]
[392262117,1761289711738,-319.39082811,0.00019699,2]
[392262118,1761289711803,-83.78230584,0.00019699,2]
[392262119,1761289711834,-500.0,0.00019699,2]
[392262120,1761289711869,-500.0,0.00019699,2]
[392262121,1761289711899,-500.0,0.00019699,2]
[392262122,1761289711937,-500.00000001,0.00019699,2]
[392262123,1761289719376,276.04,0.0001969,3]
[392262124,1761289724231,-9723.97,0.000197,2]
[392262125,1761289724361,-10000.01,0.000197,2]
[392262126,1761289724493,-10000.01,0.000197,2]
[392262127,1761289724692,-10000.01,0.000197,2]
[392262128,1761289724839,-10000.01,0.000197,2]
[392262129,1761289724984,-10000.01,0.000197,2]
[392262130,1761289727428,-10000.01,0.000197,2]
[392262131,1761289739330,-10000.01,0.000197,2]
[392262132,1761289739650,-10000.01,0.000197,2]
[392262133,1761289739670,-10000.01,0.000197,2]
[392262134,1761289739732,-10000.01,0.000197,2]
[392262135,1761289739883,-10000.01,0.000197,2]
[392262136,1761289740018,-10000.01,0.000197,2]
[392262137,1761289754578,-5000.0,0.00019308,2]